Cogmind - Beta 12 @@@ ROGUE MODE // 2023.06.27 @ 19:36:11 Player: alexaub Result: Destroyed by L-31 Rogue with Katana Performance ------------- Evolutions (2) 1000 Regions Visited (7) 1400 Robots Destroyed (11) 55 Value Destroyed (286) 286 Prototype IDs (3) 60 Alien Tech Used (0) 0 Bonus (300) 300 TOTAL SCORE: 3101 Bonus ------- Aligned with FarCom 300 Cogmind --------- Core Integrity 0/550 Matter 277/300 Energy 59/100 System Corruption 0% Temperature Cool (0) Movement Core (150) Ox2 Location -8/Materials Parts ------- > --- POWER (1) -------- (None) > --- PROPULSION (3) --- (None) > --- UTILITY (5) ------ Lightpack 2.0 Advanced ECM Suite > --- WEAPON (2) ------- (None) > --- INVENTORY (40) --- Small Storage Unit Large Matter Pod (124) Hacking Suite Light Assault Rifle Bore Cannon Rocket Launcher Katana Katana Peak State ------------ > --- POWER ------------ (None) > --- PROPULSION ------- Flight Unit Flight Unit Flight Unit > --- UTILITY ---------- Lightpack 2.0 Improved Terrain Scanner > --- WEAPON ----------- (None) > --- INVENTORY -------- Aluminum Leg Aluminum Leg Small Storage Unit Large Matter Pod Sensor Array Hacking Suite Light Assault Rifle Bore Cannon Rocket Launcher [Rating: 37] Favorites ----------- Power Nuclear Core Engine Ion Engine Power Core Nuclear Core Propulsion Flight Unit Leg Aluminum Leg Wheel Compact Wheel Flight Unit Flight Unit Utility Small Storage Unit Device Sensor Array Storage Small Storage Unit Processor Signal Interpreter Weapon High-powered Shotgun Energy Gun Beam Rifle Ballistic Gun High-powered Shotgun Launcher Rocket Launcher Slashing Weapon Katana Build | -11 -10 -10 -9 -9 -9 -8 -8 ------- Run | Jun Mat Min Mat Min Exi Min Mat Slots Evolved 4 | . . . 2 . . . 2 Power . | . . . . . . . . Propulsion 1 | . . . 1 . . . . Utility 3 | . . . 1 . . . 2 Weapon . | . . . . . . . . Parts Attached 36 | 8 2 5 3 8 4 . 6 Power 3 | 1 . 1 . 1 . . . Engine 1 | 1 . . . . . . . Core 2 | . . 1 . 1 . . . Reactor . | . . . . . . . . Propulsion 13 | 3 . 2 2 3 . . 3 Treads . | . . . . . . . . Leg 7 | 1 . 2 2 . . . 2 Wheel 2 | 2 . . . . . . . Hover . | . . . . . . . . Flight 4 | . . . . 3 . . 1 Utility 10 | 1 2 . 1 1 3 . 2 Device 4 | . 1 . 1 . . . 2 Storage 3 | 1 . . . . 2 . . Processor 3 | . 1 . . 1 1 . . Hackware . | . . . . . . . . Protection . | . . . . . . . . Artifact . | . . . . . . . . Weapon 10 | 3 . 2 . 3 1 . 1 Energy Gun 5 | 3 . 1 . . 1 . . Energy Cannon . | . . . . . . . . Ballistic Gun 3 | . . 1 . 2 . . . Ballistic Cannon . | . . . . . . . . Launcher 1 | . . . . 1 . . . Special Weapon . | . . . . . . . . Impact Weapon . | . . . . . . . . Slashing Weapon 1 | . . . . . . . 1 Piercing Weapon . | . . . . . . . . Special Melee Weapon . | . . . . . . . . Unidentified Prototypes 3 | . . . . . 3 . . Corrupted Parts 3 | . . 3 . . . . . System Corruption 16 | . . 16 . . . . . Parts Lost 9 | . 1 . . 2 . . 6 Power 1 | . . . . 1 . . . Propulsion 6 | . 1 . . 1 . . 4 Utility 1 | . . . . . . . 1 Weapon 1 | . . . . . . . 1 Highest Loss Streak 4 | . 1 . . 2 . . 4 To Critical Strikes . | . . . . . . . . Average Slot Usage (%) 74 | . 91 90 100 86 56 33 30 Engine 2 | . 14 3 . . . . . Core 5 | . . 10 11 9 . . . Leg 9 | . . 15 33 5 . . 1 Wheel 3 | . 22 3 . . . . . Flight 8 | . . . . 24 22 22 12 Device 4 | . 6 . 11 11 7 . 4 Storage 12 | . 14 14 11 11 11 11 9 Processor 8 | . 4 14 11 11 7 . . Energy Gun 10 | . 28 17 11 3 . . . Ballistic Gun 6 | . . 10 11 10 7 . . Naked Turns . | . . . . . . . . Heaviest Build 19 | 14 15 18 19 19 7 5 8 Greatest Support 37 | 26 26 27 37 37 8 8 20 Greatest Overweight (x) 6 | 1 . 4 . 6 . . 2 Average Overweight (x) . | . . . . . . . . Largest Inventory Capacity 40 | 8 8 8 8 8 40 40 40 Average Capacity 14 | 6 8 8 8 8 16 40 40 Most Carried 11 | 4 7 8 7 8 11 11 10 Average Carried 7 | 1 5 7 6 7 8 11 8 Final Capacity 40 | 8 8 8 8 8 40 40 40 Final Carried 11 | 4 7 8 7 8 11 11 8 Class Distribution -------------------- 70% | Mutant 14% | Hauler-Mutant 8% | Scavenger-Mutant 7% | Hauler-Scout Dominant Class ---------------- Mutant | -10/Materials Mutant | -10/Mines Mutant | -9/Materials Scavenger-Mutant | -9/Mines Mutant | -9/Exiles Hauler-Mutant | -8/Mines Hauler-Mutant | -8/Materials Resources | -11 -10 -10 -9 -9 -9 -8 -8 ----------- Run | Jun Mat Min Mat Min Exi Min Mat Matter Collected 792 | 231 209 155 42 52 103 . . Remotely . | . . . . . . . . Salvage Created 284 | . 13 137 76 58 . . . Parts 18 | . 1 6 5 6 . . . Haulers Intercepted . | . . . . . . . . Recyclers Shooed . | . . . . . . . . Parts Field Recycled . | . . . . . . . . Retrieved Matter . | . . . . . . . . Parts Self-Destructed . | . . . . . . . . Prevented . | . . . . . . . . Kills | -11 -10 -10 -9 -9 -9 -8 -8 ------- Run | Jun Mat Min Mat Min Exi Min Mat Combat Hostiles Destroyed 10 | . . 4 2 4 . . . Guns 10 | . . 4 2 4 . . . Classes Destroyed 3 | . 1 1 . 1 . . . Watcher 1 | . 1 . . . . . . Swarmer 4 | . . . . 4 . . . Grunt 6 | . . 4 2 . . . . Best Kill Streak 4 | . 1 2 2 4 . . . Combat Bots Only 4 | . . 2 2 4 . . . Max Kills in Single Turn 2 | . 1 1 1 2 . . . Gunslinging 1 | . . . . 1 . . . Exploded . | . . . . . . . . Melee . | . . . . . . . . Uniques/NPCs Destroyed . | . . . . . . . . Combat | -11 -10 -10 -9 -9 -9 -8 -8 -------- Run | Jun Mat Min Mat Min Exi Min Mat Damage Taken 1691 | . 40 254 11 155 . . 1231 Core 718 | . . 106 . 45 . . 567 Absorbed by Shields . | . . . . . . . . Core Remaining (%) 81 | 100 . 57 . . . 88 . Volleys Fired 26 | . 1 17 2 6 . . . Largest 2 | . 2 2 2 2 . . . Hottest 90 | . 90 81 81 81 . . . Shots Fired 51 | . 2 36 4 9 . . . Gun 48 | . 2 36 4 6 . . . Cannon . | . . . . . . . . Launcher 3 | . . . . 3 . . . Special . | . . . . . . . . Kinetic 23 | . . 18 2 3 . . . Thermal 24 | . 1 18 2 3 . . . Explosive 3 | . . . . 3 . . . Electromagnetic 1 | . 1 . . . . . . Robot Hit Streak 7 | . 2 7 2 1 . . . Robot Miss Streak 4 | . . 2 2 4 . . . Penetration Max . | . . . . . . . . Secondary Targets 2 | . . 1 . 1 . . . Max Gunslinging Chain 1 | . . 1 . 1 . . . Shots Hit Robots 37 | . 2 28 3 3 . . 1 Core Hits 18 | . 1 11 2 4 . . . Critical Kills . | . . . . . . . . Critical Parts Destroyed . | . . . . . . . . Critical Strikes . | . . . . . . . . Melee Attacks 1 | . . . . . . . 1 Impact . | . . . . . . . . Slashing 1 | . . . . . . . 1 Piercing . | . . . . . . . . Sneak Attacks . | . . . . . . . . Combat Hostiles . | . . . . . . . . Follow-up Attacks . | . . . . . . . . Damage Inflicted 711 | . 47 483 64 67 . . 50 Guns 634 | . 20 483 64 67 . . . Cannons . | . . . . . . . . Explosions 27 | . 27 . . . . . . Melee 37 | . . . . . . . 37 Ramming 13 | . . . . . . . 13 Kinetic 384 | . . 282 49 53 . . . Thermal 257 | . 27 201 15 14 . . . Explosive . | . . . . . . . . Electromagnetic 20 | . 20 . . . . . . Impact . | . . . . . . . . Slashing 37 | . . . . . . . 37 Piercing . | . . . . . . . . Highest Corruption 16 | . . 16 . . . . . Average Corruption 15 | . . 15 . . . . . Corruption Purged . | . . . . . . . . Corruption Blocked . | . . . . . . . . Effects 19 | . . 19 . . . . . Message Errors 4 | . . 4 . . . . . Matter Fused 5 | . . 5 . . . . . Energy Discharges 2 | . . 2 . . . . . Parts Fused 1 | . . 1 . . . . . Data Loss (minor) 3 | . . 3 . . . . . Data Loss (major) 2 | . . 2 . . . . . Misfires 2 | . . 2 . . . . . Overload Shots . | . . . . . . . . Overflow Damage . | . . . . . . . . Projectiles . | . . . . . . . . Explosions . | . . . . . . . . Melee . | . . . . . . . . Knockbacks . | . . . . . . . . Impact . | . . . . . . . . Kinetic . | . . . . . . . . Secondary . | . . . . . . . . Self-Inflicted Damage 44 | . 40 . . . . . 4 Shots 1 | . 1 . . . . . . Rammed 1 | . . . . . . . 1 Targets Rammed 3 | . . . . . . . 3 Kicked 2 | . . . . . . . 2 Crushed . | . . . . . . . . Highest Temperature 376 | . 42 376 36 54 . . . Average Temperature 112 | . 24 138 18 27 . . . Received Heat Transfer 589 | . . 138 6 40 . . 405 Effects 1 | . . 1 . . . . . Shutdowns 1 | . . 1 . . . . . Siege Activations . | . . . . . . . . Robots Corrupted . | . . . . . . . . Combat Hostiles . | . . . . . . . . Parts Fried . | . . . . . . . . Impact Corruptions . | . . . . . . . . Robots Melted . | . . . . . . . . Combat Hostiles . | . . . . . . . . Parts Melted 1 | . . 1 . . . . . Heat Transferred 642 | . 50 518 37 37 . . . Parts Sabotaged . | . . . . . . . . Parts Stolen . | . . . . . . . . Parts Stripped . | . . . . . . . . Power Chain Reactions 1 | . 1 . . . . . . Missiles Intercepted . | . . . . . . . . Alert | -11 -10 -10 -9 -9 -9 -8 -8 ------- Run | Jun Mat Min Mat Min Exi Min Mat Peak Influence 172 | . 31 100 89 172 . . 80 Initial 39 | . . 12 39 34 . . . Average 48 | . 9 36 71 133 . . 48 Maximum Alert Level . | . . . . . . . . Low Security (%) 100 | 100 100 100 100 100 . 100 100 Level 1 . | . . . . . . . . Level 2 . | . . . . . . . . Level 3 . | . . . . . . . . Level 4 . | . . . . . . . . Level 5 . | . . . . . . . . High Security . | . . . . . . . . Max Security . | . . . . . . . . Squads Dispatched 6 | . 1 . 1 . . . 4 Investigation 3 | . . . 1 . . . 2 Extermination . | . . . . . . . . Reinforcement 3 | . 1 . . . . . 2 Assault . | . . . . . . . . Garrison . | . . . . . . . . Intercept . | . . . . . . . . Searches Triggered . | . . . . . . . . Construction Impeded . | . . . . . . . . Haulers Reinforced . | . . . . . . . . Active Scanning Responses . | . . . . . . . . Cargo Convoy Interrupts . | . . . . . . . . Stealth | -11 -10 -10 -9 -9 -9 -8 -8 --------- Run | Jun Mat Min Mat Min Exi Min Mat Distress Signals 1 | . . . . . . . 1 Communications Jammed . | . . . . . . . . Distress Signals . | . . . . . . . . Times Spotted 33 | . 2 6 2 9 . . 14 Peak Tracking Total 12 | . 1 2 2 11 . . 12 Tactical Retreats 5 | . . . . 2 . . 3 Traps | -11 -10 -10 -9 -9 -9 -8 -8 ------- Run | Jun Mat Min Mat Min Exi Min Mat Traps Triggered 2 | . . 1 . . . . 1 Indirectly . | . . . . . . . . Trap Hack Attempts . | . . . . . . . . Triggered . | . . . . . . . . Disarmed . | . . . . . . . . Reprogrammed . | . . . . . . . . Reused . | . . . . . . . . Traps Extracted . | . . . . . . . . Installed . | . . . . . . . . Triggered . | . . . . . . . . Machines | -11 -10 -10 -9 -9 -9 -8 -8 ---------- Run | Jun Mat Min Mat Min Exi Min Mat Machines Disabled 1 | . . 1 . . . . . Max in Single Turn 1 | . . 1 . . . . . Machines Repaired . | . . . . . . . . Machines Sabotaged . | . . . . . . . . Overloaded Fab Kills . | . . . . . . . . Hacking | -11 -10 -10 -9 -9 -9 -8 -8 --------- Run | Jun Mat Min Mat Min Exi Min Mat Machines Accessed 7 | . 1 1 3 . . . 2 Terminals 6 | . 1 . 3 . . . 2 Fabricators . | . . . . . . . . Repair Stations . | . . . . . . . . Recycling Units . | . . . . . . . . Scanalyzers . | . . . . . . . . Garrison Access . | . . . . . . . . Total Hacks 19 | . 3 1 9 . . . 6 Successful 8 | . . 1 4 . . . 3 Failed 11 | . 3 . 5 . . . 3 Catastrophic 4 | . . . 3 . . . 1 Database Lockouts . | . . . . . . . . Manual 15 | . 3 . 6 . 1 . 5 Terminals 18 | . 3 . 9 . . . 6 Fabricators . | . . . . . . . . Repair Stations . | . . . . . . . . Recycling Units . | . . . . . . . . Scanalyzers . | . . . . . . . . Garrison Access . | . . . . . . . . Terminal Hacks 4 | . . 1 2 . . . 1 Open Door 1 | . . 1 . . . . . Branch Access Points 1 | . . . 1 . . . . Hauler Manifests 1 | . . . . . . . 1 Zone Layout 1 | . . . 1 . . . . Fabricator Hacks . | . . . . . . . . Repair Station Hacks . | . . . . . . . . Recycling Unit Hacks . | . . . . . . . . Scanalyzer . | . . . . . . . . Garrison Access Hacks . | . . . . . . . . Unauthorized Hacks 4 | . . . 2 . . . 2 Terminals 4 | . . . 2 . . . 2 Botnet 2 | . . . 1 . . . 1 Operators 2 | . . . 1 . . . 1 Fabricators . | . . . . . . . . Repair Stations . | . . . . . . . . Recycling Units . | . . . . . . . . Scanalyzers . | . . . . . . . . Garrison Access . | . . . . . . . . Data Cores Recovered . | . . . . . . . . Used . | . . . . . . . . Hacking Detections 6 | . 1 . 3 . . . 2 Full Trace Events 2 | . . . 1 . . . 1 Feedback Events . | . . . . . . . . Feedback Blocked . | . . . . . . . . Robot Schematics Acquired . | . . . . . . . . Robots Built . | . . . . . . . . Authchips . | . . . . . . . . Time . | . . . . . . . . Total Robot Build Rating . | . . . . . . . . Part Schematics Acquired . | . . . . . . . . Parts Built . | . . . . . . . . Authchips . | . . . . . . . . Time . | . . . . . . . . Total Part Build Rating . | . . . . . . . . Parts Repaired . | . . . . . . . . Time . | . . . . . . . . Parts Recycled . | . . . . . . . . Recycled Matter . | . . . . . . . . Retrieved Matter . | . . . . . . . . Retrieved Components . | . . . . . . . . Parts Scanalyzed . | . . . . . . . . Part Schematics Acquired . | . . . . . . . . Parts Damaged . | . . . . . . . . Bothacking | -11 -10 -10 -9 -9 -9 -8 -8 ------------ Run | Jun Mat Min Mat Min Exi Min Mat Used RIF Installer . | . . . . . . . . Robots Hacked . | . . . . . . . . Non-combat . | . . . . . . . . Combat . | . . . . . . . . Robot Hacks Applied . | . . . . . . . . Relay Couplers Released . | . . . . . . . . Fabnet Peak Effective % . | . . . . . . . . Robots Rewired . | . . . . . . . . Allies Hacked . | . . . . . . . . Hacks Repelled . | . . . . . . . . Allies | -11 -10 -10 -9 -9 -9 -8 -8 -------- Run | Jun Mat Min Mat Min Exi Min Mat Total Allies . | . . . . . . . . Largest Group . | . . . . . . . . Highest-Rated Group . | . . . . . . . . Highest-Rated Ally . | . . . . . . . . Total Orders . | . . . . . . . . Ally Attacks . | . . . . . . . . Total Damage . | . . . . . . . . Kills . | . . . . . . . . Allies Corrupted . | . . . . . . . . Allies Melted . | . . . . . . . . Intel | -11 -10 -10 -9 -9 -9 -8 -8 ------- Run | Jun Mat Min Mat Min Exi Min Mat Robot Analysis Total . | . . . . . . . . Derelict Logs Recovered 3 | . . 2 . 1 . . . Drone Launches . | . . . . . . . . Drone Recoveries . | . . . . . . . . Exploration | -11 -10 -10 -9 -9 -9 -8 -8 ------------- Run | Jun Mat Min Mat Min Exi Min Mat Turns Passed 1697 | 78 165 601 122 180 246 16 289 Spaces Moved 2075 | 58 165 414 92 331 625 43 347 Core 108 | 2 . 2 . 5 . . 99 Treads . | . . . . . . . . Legs 418 | 20 . 268 92 14 . . 24 Wheels 345 | 36 165 144 . . . . . Hover . | . . . . . . . . Flight 1204 | . . . . 312 625 43 224 Fastest Speed 34 | 50 90 100 123 34 37 37 34 Average Speed 71 | 107 93 126 123 43 37 37 65 Slowest Speed 360 | 190 100 250 123 360 37 37 150 Overloaded Moves . | . . . . . . . . Propulsion Burnouts . | . . . . . . . . Robots Hopped . | . . . . . . . . Cave-ins Triggered . | . . . . . . . . Exploration Rate (%) 45 | 5 32 88 13 63 87 25 47 Regions Visited 7 Branch Regions 4 Pre-discovered Areas 1 | . . 1 . . . . . Known Exits Taken 5 | . 1 1 1 1 1 . . Unknown Exits Taken 2 | 1 . . . . . 1 . Scrap Searched 1 | . . . . 1 . . . Spaces Dug 18 | . . . . 18 . . . Terrain Destroyed 31 | . 3 . . 28 . . . Melee . | . . . . . . . . Projectile . | . . . . . . . . AOE 31 | . 3 . . 28 . . . Terrain Rammed . | . . . . . . . . Walls Destroyed . | . . . . . . . . Machines Disabled . | . . . . . . . . Actions | -11 -10 -10 -9 -9 -9 -8 -8 --------- Run | Jun Mat Min Mat Min Exi Min Mat Total 2239 | 69 172 458 96 355 641 42 406 Wait 59 | . 2 11 . . . . 46 Move 2068 | 57 164 413 91 330 624 42 347 Hop . | . . . . . . . . Pick Up 23 | 4 3 5 . 3 6 . 2 Fast Attach 19 | 6 1 3 . 4 3 . 2 Attach 7 | . . 1 2 . . . 4 Detach 4 | . . . . 2 2 . . Swap 10 | 2 1 1 1 4 1 . . Drop 19 | . . 7 . 6 5 . 1 Fire 26 | . 1 17 2 6 . . . Melee 1 | . . . . . . . 1 Ram 1 | . . . . . . . 1 Kick 2 | . . . . . . . 2 Crush . | . . . . . . . . Escape Stasis . | . . . . . . . . Rewire . | . . . . . . . . Trap . | . . . . . . . . Miscellaneous . | . . . . . . . . Route ------- -11/Junkyard -10/Materials -10/Mines -9/Materials (discovered 2 exits: *Min x2) -9/Mines (discovered 2 exits: *Mat / *Exi) -9/Exiles -8/Mines -8/Materials History --------- Turn | Location | Event 7 | -11/Junkyard | Discovered new exit (range 16) 79 | -11/Junkyard | Entered Materials 227 | -10/Materials | Discovered new exit (range 10) 243 | -10/Materials | Identified exit to Mines 244 | -10/Materials | Entered Mines 272 | -10/Mines | Discovered new exit (range 12) 279 | -10/Mines | Received a Rocket Launcher from a helpful Derelict 283 | -10/Mines | Identified exit to Materials 289 | -10/Mines | Learned location of 1 exit from Materials 316 | -10/Mines | Build established: Mutant 317 | -10/Mines | Learned location of Mines (-9) 385 | -10/Mines | Met a Derelict who couldn't figure out how to use a Trap Extractor 400 | -10/Mines | System corruption reached 10% 511 | -10/Mines | Joined a pair of Derelicts in attacking an 0b10 outpost 845 | -10/Mines | Entered Materials 845 | -9/Materials | Evolved 2 slots: Propulsion x1, Utility x1 846 | -9/Materials | Identified exit to Mines 967 | -9/Materials | Entered Mines 1037 | -9/Mines | Assembled infested the area 1046 | -9/Mines | A weapon hastily lodged in a ceiling crevice suddenly fell to the ground 1058 | -9/Mines | Discovered new exit (range 4) 1116 | -9/Mines | Learned Materials garrison access intel 1146 | -9/Mines | Discovered new exit (range 3) 1146 | -9/Mines | Identified exit to Exiles 1147 | -9/Mines | Entered Exiles 1156 | -9/Exiles | Met 8R-AWN 1162 | -9/Exiles | Met EX-HEX 1177 | -9/Exiles | Met EX-DEC 1195 | -9/Exiles | Visited The Gauntlet 1240 | -9/Exiles | Discovered new exit (range 10) 1253 | -9/Exiles | Identified exit to Mines 1298 | -9/Exiles | Met EX-BIN 1302 | -9/Exiles | Aligned with FarCom system 1303 | -9/Exiles | Given EX-Vault access code 1317 | -9/Exiles | Opened EX-Vault 1322 | -9/Exiles | Found Prototype Energy Gun 1322 | -9/Exiles | Identified AWS/Thermal 1325 | -9/Exiles | Found Prototype Processor 1325 | -9/Exiles | Identified Modified TNC 1329 | -9/Exiles | Found Prototype Storage 1329 | -9/Exiles | Identified Lightpack 2.0 1349 | -9/Exiles | Warned to stay clear of 0b10 Research branches 1393 | -9/Exiles | Left Exiles lab with Lightpack 2.0 1393 | -9/Exiles | Entered Mines 1406 | -8/Mines | Discovered new exit (range 8) 1409 | -8/Mines | Entered Materials 1409 | -8/Materials | Evolved 2 slots: Utility x2 1410 | -8/Materials | Loaded intel: 1 garrison access location 1586 | -8/Materials | Lost 4 parts (3n1u) 1621 | -8/Materials | Core integrity fell below 50% 1629 | -8/Materials | Core integrity fell below 20% 1698 | -8/Materials | Destroyed by L-31 Rogue with Katana Last Messages --------------- 01600_ Kicked G-47 Trooper. 01601_ Kicked G-47 Trooper out of the way. 01601_ Critical hit (Burn: +37). 01604_ Aluminum Leg severed. 01604_ ALERT: Suspicious intruders detected, dispatching Specialist reinforcements to area. 01618_ Penetrated by Slug. 01618_ Knocked back. 01622_ Penetrated by Slug. 01622_ Aluminum Leg destroyed. 01622_ Knocked back. 01623_ M-28 Smith repairs G-47 Trooper. 01628_ Knocked back. 01645_ Atomic Centrifuge disabled. 01650_ Katana destroyed. 01651_ Connecting with Terminal... 01651_ ALERT: Suspicious activity at Terminal M010. Dispatching Investigation squad. 01680_ Acquired Adv. ECM Suite. 01697_ W-25 Informer sends out distress signal. Map ----- +----------------------------------------------------+ | ?????????????????????????????????????????????????? | | ?????????????????????????????????????????????????? | | ???????????????????????????????????????####??????? | | ??????????????????????????????????????? ?????? | | ???????????????????????????????????#?? ?????? | | ???????????????????????????????????# """ """ #???? | | ???????????????????????????????????# """ """ #???? | | ???????????????????????????????????# """ """ #???? | | ???????????????????????????????????# """ """ #???? | | ???????????????????????????????????# """ """ #???? | | ????????????????????#######????????# #???? | | ????????????????????#!! #;##############+#####???? | | ????????????????????#!! g ######?? | | ????????????????????#!! g +?? | | ????????????????????#! HgYg ######?? | | ????????????????????#[[ w############# #??????? | | ????????????????????#[[ ############# #??????? | | ????????????????????#####h## """ """ ## #??????? | | ???????o????????????????#g## """ """ ## ##?????? | | ?????????????????#####??# ## """ "" " ####### | | ?????????????????# "T"?#g## " | | ?????????????????# #g## + T | | ?????????????????#] """ # ## = # | | ?????????????????# """ + + # ###+### | | ?????????????????#! """ #l## ### ###?????? | | ?????????????????# ??#@##########+#?? #???????? | | ?????????????????###??### ###?##???? #?? #???????? | | ??????????????????????# %##"##### ### #???????? | | ??????????????? #### #???????? | | ??????????????# + % #???????? | | ??????????????# # ## ####???????? | | ???????????????????#??# ##/#### #??????????? | | ??????????????????????###+### ## ###########? | | ????????????????????????????#x ## #? | | ????????????????????????????# + +? | | ???????????????????????????x# ## #? | | ????????????????????????????# ### ###/###### # | | ????????????????????????????# #?# #?# ! # # | | ????????????????????????????# ### ### # + | | ????????????????????????????# # # # # | | ????????????????????????????# # # = # #? | | ????????????????????????????###### = / # #? | | ?????????????????????????????????# # ! !# #? | | ?????????????????????????????????# ######## ## | | ?????????????????????????????????#######! ! + | | ???????????????????????????????????????# # | | ???????????????????????????????????????# # | | ???????????????????????????????????????# """ # | | ???????????????????????????????????????# """ # | | ???????????????????????????????????????# """ #^ [ | +----------------------------------------------------+ Best States ------------- Heat Dissipation 31 Energy Generation 14 Energy Capacity 250 Matter Stores 300 Matter Capacity 300 Sight Range 16 Robot Scan Range 14 Terrain Scan Range 16 Terrain Scan Density 10 Evasion (%) 63 Item Schematics ----------------- None Robot Schematics ------------------ None Fabricated ------------ Nothing Alien Tech Used ----------------- None Achievements -------------- None Challenges ------------ None Game ------ Seed MiniHackingHammer Manual? 0 Play Time 00:27:24 Cumulative 55.3 hours Start 2023.06.27 @ 17:37:33 End 2023.06.27 @ 19:36:11 Sessions 2 Manual Loads 0 Difficulty Rogue Special Mode None Game No. 47 Rogue 47 Adventurer 0 Explorer 0 Win Type - Total 0 Types 0/0/0/0/0/0/0/0/0 Lore% 36 Gallery% 50 Achievement% 39 Wizard Run 0 Options --------- ASCII 0 Keyboard 0 Movement Vi Keybinds 0 Fullscreen 1 Font 24/Smallcaps Map View 76x50 Tactical HUD 1 Map Filters NONE Filters NONE Steam 1 RUN: 91494cb6-417e-4693-bfc1-c704d8c5a007